[Event "Titled Tuesday Blitz June 21 Early 2022"]
[White "Abdi, Farzad"]
[Black "Jia, Haoxiang"]
[WhiteFideId "2076829"]
[BlackFideId "8602999"]
[WhiteElo "2245"]
[BlackElo "2605"]
[Result "0-1"]
[Round "01"]
[TimeControl "180+1"]
[Date "2022.06.22"]
[WhiteClock "0:00:07"]
[BlackClock "0:00:35"]

1. e4 {[%clk 0:02:59]}  c5 {[%clk 0:02:44]} 2. Nf3 {[%clk 0:02:55]}  d6 {[%clk 0:02:19]} 3. d4 {[%clk 0:02:54]}  cxd4 {[%clk 0:02:18]} 4. Nxd4 {[%clk 0:02:55]}  Nf6 {[%clk 0:02:18]} 5. Nc3 {[%clk 0:02:56]}  g6 {[%clk 0:02:17]} 6. Bc4 {[%clk 0:02:49]}  Bg7 {[%clk 0:02:15]} 7. Bb3 {[%clk 0:02:49]}  O-O {[%clk 0:02:07]} 8. O-O {[%clk 0:02:49]}  Nc6 {[%clk 0:01:58]} 9. Nde2 {[%clk 0:02:29]}  Na5 {[%clk 0:01:46]} 10. Nf4 {[%clk 0:02:14]}  Nxb3 {[%clk 0:01:23]} 11. axb3 {[%clk 0:02:14]}  Bd7 {[%clk 0:01:19]} 12. Nfd5 {[%clk 0:02:00]}  Bc6 {[%clk 0:01:13]} 13. Be3 {[%clk 0:01:56]}  b6 {[%clk 0:01:06]} 14. f3 {[%clk 0:01:50]}  Qd7 {[%clk 0:00:47]} 15. Qd2 {[%clk 0:01:49]}  Bb7 {[%clk 0:00:46]} 16. Bh6 {[%clk 0:01:47]}  Nxd5 {[%clk 0:00:46]} 17. Nxd5 {[%clk 0:01:40]}  Bxh6 {[%clk 0:00:46]} 18. Qxh6 {[%clk 0:01:39]}  Bxd5 {[%clk 0:00:46]} 19. exd5 {[%clk 0:01:39]}  Qb5 {[%clk 0:00:42]} 20. Rfd1 {[%clk 0:01:18]}  Qc5+ {[%clk 0:00:42]} 21. Kh1 {[%clk 0:01:15]}  Qxc2 {[%clk 0:00:40]} 22. Rac1 {[%clk 0:01:16]}  Qxb2 {[%clk 0:00:40]} 23. Re1 {[%clk 0:00:13]}  Rfe8 {[%clk 0:00:38]} 24. Rc7 {[%clk 0:00:11]}  Qxb3 {[%clk 0:00:38]} 25. h4 {[%clk 0:00:09]}  Qxd5 {[%clk 0:00:37]} 26. Rexe7 {[%clk 0:00:07]}  Rxe7 {[%clk 0:00:37]} 27. Rxe7 {[%clk 0:00:08]}  a5 {[%clk 0:00:35]} 28. f4 {[%clk 0:00:07]}  a4 {[%clk 0:00:35]} 29. f5 {[%clk 0:00:07]}  Qxf5 {[%clk 0:00:34]} 30. h5 {[%clk 0:00:07]}  Qxh5+ {[%clk 0:00:34]} 31. Qxh5 {[%clk 0:00:07]}  gxh5 {[%clk 0:00:35]} 0-1


[Site "https://www.chess.com"]

[Event "Titled Tuesday Blitz June 21 Early 2022"]
[White "Amburgy, Ryan"]
[Black "Nunez V, Gustavo Eduardo"]
[WhiteFideId "30924820"]
[BlackFideId "4403690"]
[WhiteElo "2066"]
[BlackElo "2228"]
[Result "1-0"]
[Round "01"]
[TimeControl "180+1"]
[Date "2022.06.22"]
[WhiteClock "0:00:06"]
[BlackClock "0:00:05"]

1. Nf3 {[%clk 0:03:00]}  g6 {[%clk 0:02:59]} 2. e4 {[%clk 0:03:00]}  Bg7 {[%clk 0:02:59]} 3. d4 {[%clk 0:03:00]}  d6 {[%clk 0:03:00]} 4. Nc3 {[%clk 0:02:59]}  Nd7 {[%clk 0:03:00]} 5. Be2 {[%clk 0:02:59]}  c5 {[%clk 0:03:01]} 6. d5 {[%clk 0:02:57]}  Ngf6 {[%clk 0:03:00]} 7. O-O {[%clk 0:02:55]}  O-O {[%clk 0:03:00]} 8. h3 {[%clk 0:02:53]}  h6 {[%clk 0:03:00]} 9. Be3 {[%clk 0:02:48]}  a6 {[%clk 0:03:00]} 10. a4 {[%clk 0:02:48]}  g5 {[%clk 0:02:46]} 11. Nd2 {[%clk 0:02:12]}  Ne5 {[%clk 0:02:41]} 12. a5 {[%clk 0:02:07]}  b5 {[%clk 0:02:21]} 13. axb6 {[%clk 0:02:07]}  Qxb6 {[%clk 0:02:20]} 14. Nb3 {[%clk 0:02:04]}  g4 {[%clk 0:02:02]} 15. h4 {[%clk 0:01:51]}  h5 {[%clk 0:01:52]} 16. Re1 {[%clk 0:01:41]}  Ng6 {[%clk 0:01:49]} 17. Bg5 {[%clk 0:01:30]}  Nh7 {[%clk 0:01:40]} 18. Qd2 {[%clk 0:01:25]}  f6 {[%clk 0:01:34]} 19. Be3 {[%clk 0:01:07]}  Nxh4 {[%clk 0:01:32]} 20. Na5 {[%clk 0:01:02]}  Bd7 {[%clk 0:01:15]} 21. Nc4 {[%clk 0:00:44]}  Qc7 {[%clk 0:01:13]} 22. Bf4 {[%clk 0:00:37]}  Ng6 {[%clk 0:01:10]} 23. Bh2 {[%clk 0:00:37]}  f5 {[%clk 0:01:01]} 24. exf5 {[%clk 0:00:34]}  Bxf5 {[%clk 0:00:59]} 25. Bd3 {[%clk 0:00:34]}  h4 {[%clk 0:00:33]} 26. Bxf5 {[%clk 0:00:28]}  Rxf5 {[%clk 0:00:34]} 27. Qe2 {[%clk 0:00:29]}  Bxc3 {[%clk 0:00:21]} 28. bxc3 {[%clk 0:00:28]}  g3 {[%clk 0:00:14]} 29. fxg3 {[%clk 0:00:29]}  Raf8 {[%clk 0:00:11]} 30. g4 {[%clk 0:00:25]}  Rf2 {[%clk 0:00:11]} 31. Qe6+ {[%clk 0:00:25]}  Kg7 {[%clk 0:00:11]} 32. Rxa6 {[%clk 0:00:18]}  Rxc2 {[%clk 0:00:09]} 33. Nxd6 {[%clk 0:00:14]}  exd6 {[%clk 0:00:08]} 34. Bxd6 {[%clk 0:00:15]}  Qf7 {[%clk 0:00:07]} 35. Bxf8+ {[%clk 0:00:15]}  Nhxf8 {[%clk 0:00:06]} 36. Qf5 {[%clk 0:00:10]}  Qxf5 {[%clk 0:00:06]} 37. gxf5 {[%clk 0:00:11]}  Nf4 {[%clk 0:00:06]} 38. Ra7+ {[%clk 0:00:09]}  Kf6 {[%clk 0:00:06]} 39. Rf1 {[%clk 0:00:08]}  Ne2+ {[%clk 0:00:05]} 40. Kh2 {[%clk 0:00:08]}  Ng3 {[%clk 0:00:06]} 41. Re1 {[%clk 0:00:07]}  Nxf5 {[%clk 0:00:06]} 42. Ra6+ {[%clk 0:00:07]}  Kg5 {[%clk 0:00:06]} 43. d6 {[%clk 0:00:08]}  Ne6 {[%clk 0:00:06]} 44. d7 {[%clk 0:00:08]}  Nf4 {[%clk 0:00:06]} 45. Rg1 {[%clk 0:00:08]}  h3 {[%clk 0:00:05]} 46. d8=Q+ {[%clk 0:00:08]}  Kg4 {[%clk 0:00:05]} 47. Qg8+ {[%clk 0:00:06]}  Kh4 {[%clk 0:00:04]} 48. Qh7+ {[%clk 0:00:04]}  Nh5 {[%clk 0:00:05]} 49. Rh6 {[%clk 0:00:03]}  hxg2 {[%clk 0:00:05]} 50. Rxh5+ {[%clk 0:00:03]}  Kg4 {[%clk 0:00:05]} 51. Qg6+ {[%clk 0:00:04]}  Kf4 {[%clk 0:00:05]} 52. Qxf5+ {[%clk 0:00:04]}  Ke3 {[%clk 0:00:06]} 53. Rh3+ {[%clk 0:00:05]}  Kd2 {[%clk 0:00:05]} 54. Rxg2+ {[%clk 0:00:06]}  Kc1 {[%clk 0:00:05]} 55. Qxc2# {[%clk 0:00:06]} 1-0


[Site "https://www.chess.com"]

[Event "Titled Tuesday Blitz June 21 Early 2022"]
[White "Antonio, Jorge Carlos"]
[Black "Perez Gormaz, Matias"]
[WhiteFideId "113190"]
[BlackFideId "3406342"]
[WhiteElo "2247"]
[BlackElo "2341"]
[Result "1-0"]
[Round "01"]
[TimeControl "180+1"]
[Date "2022.06.22"]
[WhiteClock "0:00:37"]
[BlackClock "0:00:01"]

1. e4 {[%clk 0:02:57]}  d5 {[%clk 0:03:00]} 2. exd5 {[%clk 0:02:56]}  Qxd5 {[%clk 0:03:01]} 3. Nc3 {[%clk 0:02:55]}  Qd8 {[%clk 0:02:59]} 4. d4 {[%clk 0:02:54]}  Nf6 {[%clk 0:02:59]} 5. Bg5 {[%clk 0:02:52]}  c6 {[%clk 0:02:37]} 6. Nf3 {[%clk 0:02:52]}  Bg4 {[%clk 0:02:35]} 7. Be2 {[%clk 0:02:49]}  Nbd7 {[%clk 0:02:35]} 8. O-O {[%clk 0:02:49]}  e6 {[%clk 0:02:35]} 9. h3 {[%clk 0:02:45]}  Bh5 {[%clk 0:02:29]} 10. Ne5 {[%clk 0:02:45]}  Bxe2 {[%clk 0:02:29]} 11. Qxe2 {[%clk 0:02:43]}  Be7 {[%clk 0:02:29]} 12. Rfd1 {[%clk 0:02:39]}  O-O {[%clk 0:02:29]} 13. Bh4 {[%clk 0:02:29]}  Nd5 {[%clk 0:02:18]} 14. Bxe7 {[%clk 0:02:28]}  Qxe7 {[%clk 0:02:16]} 15. Ne4 {[%clk 0:02:24]}  N5f6 {[%clk 0:02:11]} 16. Nxf6+ {[%clk 0:02:20]}  Nxf6 {[%clk 0:02:11]} 17. c3 {[%clk 0:02:16]}  Rad8 {[%clk 0:02:10]} 18. Rd3 {[%clk 0:02:15]}  c5 {[%clk 0:02:04]} 19. Rad1 {[%clk 0:02:12]}  Nd5 {[%clk 0:01:58]} 20. g3 {[%clk 0:01:59]}  b5 {[%clk 0:01:55]} 21. Nc6 {[%clk 0:01:56]}  Qc7 {[%clk 0:01:52]} 22. Nxd8 {[%clk 0:01:56]}  Rxd8 {[%clk 0:01:53]} 23. dxc5 {[%clk 0:01:49]}  Qxc5 {[%clk 0:01:53]} 24. Qe5 {[%clk 0:01:42]}  Qc6 {[%clk 0:01:47]} 25. h4 {[%clk 0:01:37]}  h6 {[%clk 0:01:45]} 26. Rd4 {[%clk 0:01:35]}  f6 {[%clk 0:01:26]} 27. Qe2 {[%clk 0:01:25]}  Kf7 {[%clk 0:01:18]} 28. Qh5+ {[%clk 0:01:21]}  Kg8 {[%clk 0:01:13]} 29. Re1 {[%clk 0:01:19]}  a6 {[%clk 0:01:10]} 30. Qe2 {[%clk 0:01:13]}  Rd6 {[%clk 0:01:09]} 31. Re4 {[%clk 0:01:05]}  Nc7 {[%clk 0:01:04]} 32. Rd4 {[%clk 0:01:01]}  Rxd4 {[%clk 0:01:01]} 33. cxd4 {[%clk 0:01:01]}  Kf7 {[%clk 0:01:00]} 34. Qh5+ {[%clk 0:00:57]}  Kg8 {[%clk 0:00:57]} 35. Qe2 {[%clk 0:00:56]}  Kf7 {[%clk 0:00:56]} 36. Qh5+ {[%clk 0:00:53]}  Kg8 {[%clk 0:00:56]} 37. Qc5 {[%clk 0:00:47]}  Qxc5 {[%clk 0:00:07]} 38. dxc5 {[%clk 0:00:45]}  Kf7 {[%clk 0:00:08]} 39. b4 {[%clk 0:00:44]}  Nd5 {[%clk 0:00:06]} 40. a3 {[%clk 0:00:44]}  Ke7 {[%clk 0:00:07]} 41. Rd1 {[%clk 0:00:43]}  g5 {[%clk 0:00:02]} 42. Kf1 {[%clk 0:00:40]}  gxh4 {[%clk 0:00:02]} 43. gxh4 {[%clk 0:00:39]}  Nc3 {[%clk 0:00:01]} 44. Rd6 {[%clk 0:00:37]} 1-0


[Site "https://www.chess.com"]

[Event "Titled Tuesday Blitz June 21 Early 2022"]
[White "Arpita, Mukherjee"]
[Black "Cherniaiev, Tykhon"]
[WhiteFideId "5056403"]
[BlackFideId "14182360"]
[WhiteElo "1934"]
[BlackElo "2289"]
[Result "0-1"]
[Round "01"]
[TimeControl "180+1"]
[Date "2022.06.22"]
[WhiteClock "0:00:06"]
[BlackClock "0:00:15"]

1. e4 {[%clk 0:02:56]}  c5 {[%clk 0:02:57]} 2. Nf3 {[%clk 0:02:53]}  e6 {[%clk 0:02:57]} 3. d4 {[%clk 0:02:53]}  cxd4 {[%clk 0:02:58]} 4. Nxd4 {[%clk 0:02:53]}  Nc6 {[%clk 0:02:58]} 5. Nc3 {[%clk 0:02:53]}  Qc7 {[%clk 0:02:58]} 6. Be2 {[%clk 0:02:46]}  Nf6 {[%clk 0:02:57]} 7. O-O {[%clk 0:02:44]}  Bb4 {[%clk 0:02:56]} 8. Ndb5 {[%clk 0:02:41]}  Qb8 {[%clk 0:02:55]} 9. a3 {[%clk 0:02:38]}  Be7 {[%clk 0:02:54]} 10. Be3 {[%clk 0:02:32]}  O-O {[%clk 0:02:53]} 11. f4 {[%clk 0:02:24]}  d5 {[%clk 0:02:53]} 12. e5 {[%clk 0:02:22]}  Nd7 {[%clk 0:02:51]} 13. Nd4 {[%clk 0:02:14]}  Nxd4 {[%clk 0:02:48]} 14. Bxd4 {[%clk 0:02:15]}  a6 {[%clk 0:02:48]} 15. Bd3 {[%clk 0:02:12]}  Qc7 {[%clk 0:02:47]} 16. Kh1 {[%clk 0:02:04]}  Nc5 {[%clk 0:02:46]} 17. Be2 {[%clk 0:01:43]}  b5 {[%clk 0:02:45]} 18. f5 {[%clk 0:01:40]}  Ne4 {[%clk 0:02:28]} 19. Nxe4 {[%clk 0:01:33]}  dxe4 {[%clk 0:02:29]} 20. f6 {[%clk 0:01:33]}  Bc5 {[%clk 0:02:27]} 21. c3 {[%clk 0:01:23]}  Rd8 {[%clk 0:02:10]} 22. Qe1 {[%clk 0:01:09]}  Bxd4 {[%clk 0:01:31]} 23. cxd4 {[%clk 0:01:10]}  Rxd4 {[%clk 0:01:30]} 24. Qg3 {[%clk 0:01:06]}  g6 {[%clk 0:01:30]} 25. Qg5 {[%clk 0:01:01]}  Qd8 {[%clk 0:01:30]} 26. Rad1 {[%clk 0:00:55]}  Rd5 {[%clk 0:01:23]} 27. Rxd5 {[%clk 0:00:26]}  exd5 {[%clk 0:01:24]} 28. Rf4 {[%clk 0:00:27]}  Be6 {[%clk 0:01:10]} 29. Rh4 {[%clk 0:00:26]}  Qf8 {[%clk 0:01:09]} 30. Rh6 {[%clk 0:00:22]}  Rc8 {[%clk 0:01:06]} 31. h3 {[%clk 0:00:22]}  Qc5 {[%clk 0:00:39]} 32. Qh4 {[%clk 0:00:16]}  Qc1+ {[%clk 0:00:40]} 33. Kh2 {[%clk 0:00:16]}  g5 {[%clk 0:00:40]} 34. Qg3 {[%clk 0:00:07]}  Qf4 {[%clk 0:00:40]} 35. Rh5 {[%clk 0:00:05]}  h6 {[%clk 0:00:22]} 36. Rxh6 {[%clk 0:00:04]}  Rc2 {[%clk 0:00:20]} 37. Qxf4 {[%clk 0:00:02]}  gxf4 {[%clk 0:00:20]} 38. Bg4 {[%clk 0:00:02]}  Bxg4 {[%clk 0:00:16]} 39. hxg4 {[%clk 0:00:02]}  e3 {[%clk 0:00:17]} 40. Rh5 {[%clk 0:00:03]}  e2 {[%clk 0:00:17]} 41. Rg5+ {[%clk 0:00:04]}  Kf8 {[%clk 0:00:17]} 42. Rh5 {[%clk 0:00:05]}  Ke8 {[%clk 0:00:17]} 43. e6 {[%clk 0:00:05]}  fxe6 {[%clk 0:00:15]} 44. Rh8+ {[%clk 0:00:06]}  Kf7 {[%clk 0:00:15]} 0-1


[Site "https://www.chess.com"]

[Event "Titled Tuesday Blitz June 21 Early 2022"]
[White "Aslanov, Umid"]
[Black "Khan, Taffin"]
[WhiteFideId "13412620"]
[BlackFideId "19700024"]
[WhiteElo "1796"]
[BlackElo "2000"]
[Result "1/2-1/2"]
[Round "01"]
[TimeControl "180+1"]
[Date "2022.06.22"]
[WhiteClock "0:01:02"]
[BlackClock "0:00:07"]

1. e4 {[%clk 0:02:48]}  c5 {[%clk 0:02:58]} 2. Nf3 {[%clk 0:02:48]}  e6 {[%clk 0:02:55]} 3. d4 {[%clk 0:02:48]}  cxd4 {[%clk 0:02:55]} 4. Nxd4 {[%clk 0:02:49]}  a6 {[%clk 0:02:55]} 5. Bd3 {[%clk 0:02:48]}  Qc7 {[%clk 0:02:52]} 6. O-O {[%clk 0:02:47]}  Nc6 {[%clk 0:02:52]} 7. Nxc6 {[%clk 0:02:46]}  dxc6 {[%clk 0:02:50]} 8. c4 {[%clk 0:02:46]}  e5 {[%clk 0:02:42]} 9. Be3 {[%clk 0:02:44]}  Nf6 {[%clk 0:02:42]} 10. f3 {[%clk 0:02:43]}  Be7 {[%clk 0:02:39]} 11. Qe2 {[%clk 0:02:42]}  O-O {[%clk 0:02:39]} 12. Nc3 {[%clk 0:02:42]}  Nd7 {[%clk 0:02:31]} 13. Qf2 {[%clk 0:02:41]}  Qa5 {[%clk 0:02:12]} 14. a3 {[%clk 0:02:35]}  Bc5 {[%clk 0:02:01]} 15. b4 {[%clk 0:02:23]}  Bxe3 {[%clk 0:02:00]} 16. Qxe3 {[%clk 0:02:24]}  Qc7 {[%clk 0:01:58]} 17. Rad1 {[%clk 0:02:21]}  Nf6 {[%clk 0:01:42]} 18. Be2 {[%clk 0:02:18]}  Be6 {[%clk 0:01:40]} 19. Na4 {[%clk 0:02:17]}  Rad8 {[%clk 0:01:15]} 20. Qb6 {[%clk 0:01:56]}  Qxb6+ {[%clk 0:01:12]} 21. Nxb6 {[%clk 0:01:57]}  Nd7 {[%clk 0:01:00]} 22. Nxd7 {[%clk 0:01:58]}  Rxd7 {[%clk 0:00:59]} 23. Rxd7 {[%clk 0:01:58]}  Bxd7 {[%clk 0:00:59]} 24. Rd1 {[%clk 0:01:58]}  Be6 {[%clk 0:00:51]} 25. g4 {[%clk 0:01:44]}  Re8 {[%clk 0:00:50]} 26. Kf2 {[%clk 0:01:42]}  Kf8 {[%clk 0:00:50]} 27. b5 {[%clk 0:01:40]}  axb5 {[%clk 0:00:48]} 28. cxb5 {[%clk 0:01:40]}  Ra8 {[%clk 0:00:47]} 29. bxc6 {[%clk 0:01:39]}  bxc6 {[%clk 0:00:46]} 30. Rc1 {[%clk 0:01:38]}  Rxa3 {[%clk 0:00:46]} 31. Rxc6 {[%clk 0:01:38]}  Ra2 {[%clk 0:00:44]} 32. Ke3 {[%clk 0:01:36]}  Ra3+ {[%clk 0:00:40]} 33. Bd3 {[%clk 0:01:32]}  Bd7 {[%clk 0:00:37]} 34. Rb6 {[%clk 0:01:25]}  Ke7 {[%clk 0:00:34]} 35. Rb7 {[%clk 0:01:24]}  Kd6 {[%clk 0:00:24]} 36. Rb2 {[%clk 0:01:19]}  Be6 {[%clk 0:00:22]} 37. Ke2 {[%clk 0:01:15]}  Kc5 {[%clk 0:00:19]} 38. Rd2 {[%clk 0:01:10]}  Ra7 {[%clk 0:00:16]} 39. Ke3 {[%clk 0:01:08]}  f6 {[%clk 0:00:16]} 40. h3 {[%clk 0:01:08]}  Ra2 {[%clk 0:00:15]} 41. Rd1 {[%clk 0:01:04]}  Ra3 {[%clk 0:00:14]} 42. Rc1+ {[%clk 0:01:03]}  Kd6 {[%clk 0:00:13]} 43. Ke2 {[%clk 0:01:02]}  Ra2+ {[%clk 0:00:12]} 44. Ke3 {[%clk 0:01:00]}  Ra3 {[%clk 0:00:12]} 45. Ke2 {[%clk 0:01:00]}  Ra2+ {[%clk 0:00:12]} 46. Bc2 {[%clk 0:01:01]}  Bb3 {[%clk 0:00:08]} 47. Kd3 {[%clk 0:01:00]}  Rxc2 {[%clk 0:00:07]} 48. Rxc2 {[%clk 0:01:01]}  Bxc2+ {[%clk 0:00:07]} 49. Kxc2 {[%clk 0:01:02]}  Kc5 {[%clk 0:00:07]} 50. Kc3 {[%clk 0:01:02]}  Kb5 {[%clk 0:00:06]} 51. Kb3 {[%clk 0:01:03]}  Kc5 {[%clk 0:00:06]} 52. Kc3 {[%clk 0:01:04]}  Kb5 {[%clk 0:00:06]} 53. Kb3 {[%clk 0:01:02]}  Kc5 {[%clk 0:00:07]} 54. Kc3 {[%clk 0:01:02]} 1/2-1/2


[Site "https://www.chess.com"]

[Event "Titled Tuesday Blitz June 21 Early 2022"]
[White "Baches Garcia, Guillermo"]
[Black "Costachi, Mihnea"]
[WhiteFideId "2209764"]
[BlackFideId "1217518"]
[WhiteElo "2442"]
[BlackElo "2476"]
[Result "1/2-1/2"]
[Round "01"]
[TimeControl "180+1"]
[Date "2022.06.22"]
[WhiteClock "0:00:24"]
[BlackClock "0:00:29"]

1. e4 {[%clk 0:03:00]}  e5 {[%clk 0:02:55]} 2. Nf3 {[%clk 0:03:01]}  Nf6 {[%clk 0:02:54]} 3. Nc3 {[%clk 0:02:59]}  Nc6 {[%clk 0:02:53]} 4. d4 {[%clk 0:02:59]}  exd4 {[%clk 0:02:52]} 5. Nxd4 {[%clk 0:03:00]}  Bb4 {[%clk 0:02:50]} 6. Nxc6 {[%clk 0:03:01]}  bxc6 {[%clk 0:02:51]} 7. Bd3 {[%clk 0:03:01]}  d5 {[%clk 0:02:52]} 8. Bd2 {[%clk 0:03:02]}  O-O {[%clk 0:02:51]} 9. O-O {[%clk 0:03:02]}  Bg4 {[%clk 0:02:48]} 10. Qc1 {[%clk 0:03:01]}  Bxc3 {[%clk 0:02:45]} 11. Bxc3 {[%clk 0:03:02]}  dxe4 {[%clk 0:02:40]} 12. Bxf6 {[%clk 0:02:59]}  Qxf6 {[%clk 0:02:41]} 13. Bxe4 {[%clk 0:02:58]}  Rab8 {[%clk 0:02:37]} 14. b3 {[%clk 0:02:52]}  Bf5 {[%clk 0:02:37]} 15. Qf4 {[%clk 0:02:39]}  Bxe4 {[%clk 0:02:37]} 16. Qxe4 {[%clk 0:02:39]}  Rfe8 {[%clk 0:02:38]} 17. Qc4 {[%clk 0:02:36]}  Re6 {[%clk 0:02:27]} 18. Rae1 {[%clk 0:02:11]}  Rd6 {[%clk 0:02:26]} 19. Re3 {[%clk 0:02:00]}  h6 {[%clk 0:02:21]} 20. Rf3 {[%clk 0:01:57]}  Qe6 {[%clk 0:02:17]} 21. Qxe6 {[%clk 0:01:56]}  Rxe6 {[%clk 0:02:18]} 22. Rd1 {[%clk 0:01:46]}  Rd6 {[%clk 0:02:15]} 23. Rfd3 {[%clk 0:01:39]}  Rbd8 {[%clk 0:02:15]} 24. Kf1 {[%clk 0:01:30]}  f5 {[%clk 0:02:11]} 25. Ke2 {[%clk 0:01:27]}  Kf7 {[%clk 0:02:11]} 26. g3 {[%clk 0:01:24]}  g5 {[%clk 0:02:11]} 27. c4 {[%clk 0:01:13]}  Kf6 {[%clk 0:02:03]} 28. f4 {[%clk 0:01:02]}  c5 {[%clk 0:01:54]} 29. Rxd6+ {[%clk 0:00:58]}  cxd6 {[%clk 0:01:54]} 30. Re1 {[%clk 0:00:50]}  d5 {[%clk 0:01:41]} 31. cxd5 {[%clk 0:00:48]}  Rxd5 {[%clk 0:01:42]} 32. Rc1 {[%clk 0:00:43]}  Ke6 {[%clk 0:01:38]} 33. Rc4 {[%clk 0:00:42]}  gxf4 {[%clk 0:01:34]} 34. Rxf4 {[%clk 0:00:41]}  Ke5 {[%clk 0:01:33]} 35. Rh4 {[%clk 0:00:38]}  Rd6 {[%clk 0:01:33]} 36. Ra4 {[%clk 0:00:37]}  a6 {[%clk 0:01:33]} 37. Ra5 {[%clk 0:00:37]}  Kd4 {[%clk 0:01:33]} 38. Ra4+ {[%clk 0:00:34]}  Kd5 {[%clk 0:01:31]} 39. Rf4 {[%clk 0:00:33]}  Ke5 {[%clk 0:01:29]} 40. Rc4 {[%clk 0:00:33]}  Kd5 {[%clk 0:01:26]} 41. Rf4 {[%clk 0:00:34]}  Rf6 {[%clk 0:01:18]} 42. Kd3 {[%clk 0:00:32]}  Ke5 {[%clk 0:01:17]} 43. Rc4 {[%clk 0:00:31]}  Rd6+ {[%clk 0:01:16]} 44. Ke3 {[%clk 0:00:31]}  Kd5 {[%clk 0:01:07]} 45. Rf4 {[%clk 0:00:30]}  Rf6 {[%clk 0:01:05]} 46. Rc4 {[%clk 0:00:29]}  Rf7 {[%clk 0:00:58]} 47. Kd3 {[%clk 0:00:28]}  Rd7 {[%clk 0:00:56]} 48. Rf4 {[%clk 0:00:27]}  Ke5+ {[%clk 0:00:57]} 49. Kc3 {[%clk 0:00:26]}  Rd1 {[%clk 0:00:52]} 50. Rh4 {[%clk 0:00:25]}  Rd6 {[%clk 0:00:40]} 51. Ra4 {[%clk 0:00:25]}  Kd5 {[%clk 0:00:33]} 52. Rf4 {[%clk 0:00:25]}  Ke6 {[%clk 0:00:34]} 53. Rh4 {[%clk 0:00:25]}  Ke5 {[%clk 0:00:34]} 54. Rc4 {[%clk 0:00:24]}  Rd5 {[%clk 0:00:31]} 55. Rh4 {[%clk 0:00:24]}  Rd6 {[%clk 0:00:29]} 1/2-1/2


[Site "https://www.chess.com"]

[Event "Titled Tuesday Blitz June 21 Early 2022"]
[White "Barria Zuniga, Daniel"]
[Black "Zaksaite, Salomeja"]
[WhiteFideId "3400816"]
[BlackFideId "12801496"]
[WhiteElo "2414"]
[BlackElo "1953"]
[Result "1-0"]
[Round "01"]
[TimeControl "180+1"]
[Date "2022.06.22"]
[WhiteClock "0:00:40"]
[BlackClock "0:00:03"]

1. d4 {[%clk 0:02:53]}  Nf6 {[%clk 0:02:37]} 2. c4 {[%clk 0:02:51]}  g6 {[%clk 0:02:35]} 3. Nc3 {[%clk 0:02:49]}  d5 {[%clk 0:02:34]} 4. Bf4 {[%clk 0:02:47]}  Bg7 {[%clk 0:02:33]} 5. e3 {[%clk 0:02:48]}  c5 {[%clk 0:02:30]} 6. dxc5 {[%clk 0:02:47]}  Qa5 {[%clk 0:02:27]} 7. Rc1 {[%clk 0:02:31]}  dxc4 {[%clk 0:02:27]} 8. Bxc4 {[%clk 0:02:28]}  O-O {[%clk 0:02:27]} 9. Nf3 {[%clk 0:02:27]}  Qxc5 {[%clk 0:02:25]} 10. Bb3 {[%clk 0:02:24]}  Qa5 {[%clk 0:02:25]} 11. O-O {[%clk 0:02:22]}  Nc6 {[%clk 0:02:24]} 12. h3 {[%clk 0:02:22]}  Bf5 {[%clk 0:02:16]} 13. Qe2 {[%clk 0:02:21]}  Ne4 {[%clk 0:01:54]} 14. Nxe4 {[%clk 0:02:17]}  Bxe4 {[%clk 0:01:54]} 15. Rfd1 {[%clk 0:02:18]}  Bxf3 {[%clk 0:01:44]} 16. Qxf3 {[%clk 0:01:57]}  Bxb2 {[%clk 0:01:43]} 17. Rb1 {[%clk 0:01:56]}  Bg7 {[%clk 0:01:40]} 18. Bd5 {[%clk 0:01:56]}  e6 {[%clk 0:01:13]} 19. Be4 {[%clk 0:01:29]}  Ne5 {[%clk 0:00:32]} 20. Qe2 {[%clk 0:01:07]}  Rad8 {[%clk 0:00:12]} 21. Rxd8 {[%clk 0:00:52]}  Rxd8 {[%clk 0:00:11]} 22. Rb5 {[%clk 0:00:52]}  Qa4 {[%clk 0:00:11]} 23. Bxe5 {[%clk 0:00:49]}  Qxe4 {[%clk 0:00:11]} 24. Bxg7 {[%clk 0:00:48]}  Kxg7 {[%clk 0:00:11]} 25. Qb2+ {[%clk 0:00:47]}  Kg8 {[%clk 0:00:08]} 26. Rxb7 {[%clk 0:00:47]}  Rd1+ {[%clk 0:00:07]} 27. Kh2 {[%clk 0:00:47]}  Rd8 {[%clk 0:00:04]} 28. Rxa7 {[%clk 0:00:41]}  h5 {[%clk 0:00:03]} 29. Qf6 {[%clk 0:00:40]} 1-0


[Site "https://www.chess.com"]

[Event "Titled Tuesday Blitz June 21 Early 2022"]
[White "Bilych, Olexiy"]
[Black "Eggleston, Thomas A"]
[WhiteFideId "14156504"]
[BlackFideId "412139"]
[WhiteElo "2189"]
[BlackElo "2174"]
[Result "1-0"]
[Round "01"]
[TimeControl "180+1"]
[Date "2022.06.22"]
[WhiteClock "0:01:24"]
[BlackClock "0:01:26"]

1. e4 {[%clk 0:03:00]}  e6 {[%clk 0:03:00]} 2. d4 {[%clk 0:03:00]}  d5 {[%clk 0:03:00]} 3. Nc3 {[%clk 0:03:00]}  Nf6 {[%clk 0:03:01]} 4. e5 {[%clk 0:03:01]}  Nfd7 {[%clk 0:03:01]} 5. f4 {[%clk 0:03:01]}  c5 {[%clk 0:03:02]} 6. Nf3 {[%clk 0:03:02]}  Nc6 {[%clk 0:03:03]} 7. Be3 {[%clk 0:03:03]}  Be7 {[%clk 0:03:02]} 8. Be2 {[%clk 0:03:00]}  O-O {[%clk 0:03:01]} 9. O-O {[%clk 0:02:59]}  b6 {[%clk 0:03:01]} 10. Qd2 {[%clk 0:02:57]}  f6 {[%clk 0:02:56]} 11. dxc5 {[%clk 0:02:30]}  Nxc5 {[%clk 0:02:51]} 12. Rad1 {[%clk 0:02:17]}  fxe5 {[%clk 0:02:47]} 13. fxe5 {[%clk 0:02:10]}  Bb7 {[%clk 0:02:39]} 14. Bd3 {[%clk 0:01:49]}  Qe8 {[%clk 0:02:34]} 15. Bg5 {[%clk 0:01:46]}  Qh5 {[%clk 0:02:17]} 16. Bxe7 {[%clk 0:01:42]}  Nxe7 {[%clk 0:02:17]} 17. Qg5 {[%clk 0:01:40]}  Qxg5 {[%clk 0:02:04]} 18. Nxg5 {[%clk 0:01:41]}  Nf5 {[%clk 0:02:03]} 19. Nxe6 {[%clk 0:01:37]}  Nxe6 {[%clk 0:01:53]} 20. Bxf5 {[%clk 0:01:37]}  Nc7 {[%clk 0:01:50]} 21. Bd7 {[%clk 0:01:32]}  Rxf1+ {[%clk 0:01:44]} 22. Rxf1 {[%clk 0:01:28]}  d4 {[%clk 0:01:44]} 23. Ne2 {[%clk 0:01:28]}  Rd8 {[%clk 0:01:36]} 24. e6 {[%clk 0:01:28]}  a6 {[%clk 0:01:26]} 25. e7 {[%clk 0:01:25]}  Rxd7 {[%clk 0:01:26]} 26. Rf8# {[%clk 0:01:24]} 1-0


[Site "https://www.chess.com"]